fUSD/lending_fUSD_20251228
["ID","MTS","AMOUNT","RATE_DAILY","PERIOD"]
[399954672,1766937786699,345.0,0.0003013,120]
[399954673,1766937787408,233.27898877,0.00030136,120]
[399954674,1766937787534,219.0,0.0003013,120]
[399954675,1766937788330,193.0,0.0003013,120]
[399954676,1766937788464,500.0,0.00030136,120]
[399954677,1766937788712,295.45079425,0.00030136,120]
[399954678,1766937789138,302.0,0.0003013,120]
[399954679,1766937789948,489.0,0.0003013,120]
[399954680,1766937790350,407.10426803,0.00030136,120]
[399954681,1766937791276,479.0,0.0003013,120]
[399954682,1766937792055,246.0,0.0003013,120]
[399954683,1766937792621,375.98718825,0.00030136,120]
[399954684,1766937792866,279.0,0.0003013,120]
[399954685,1766937802697,409.05982068,0.00030136,120]
[399954686,1766937803197,176.20663336,0.00030136,120]
[399954687,1766937806648,293.0236288,0.00030136,120]
[399954688,1766937809693,279.75314357,0.00030136,120]
[399954690,1766937811518,223.84672603,0.00030136,120]
[399954691,1766937811743,444.0727,0.00030136,120]
[399954692,1766937812701,500.0,0.00030136,120]
[399954693,1766937812924,500.0,0.00030136,120]
[399954694,1766937813179,500.0,0.00030136,120]
[399954695,1766937813413,500.0,0.00030136,120]
[399954696,1766937813650,254.77271816,0.00030136,120]
[399954697,1766937817967,500.0,0.00030136,120]
[399954698,1766937818182,500.0,0.00030136,120]
[399954699,1766937818312,190.15585915,0.00030136,120]
[399954700,1766937818419,500.0,0.00030136,120]
[399954701,1766937818810,261.55656389,0.00030136,120]
[399954702,1766937821841,412.41114472,0.00030136,120]
[399954703,1766937822181,400.0,0.00030136,120]
[399954704,1766937824563,602.0,0.0003013,120]
[399954705,1766937825447,1494.0,0.0003013,120]
[399954706,1766937826306,1323.0,0.0003013,120]
[399954707,1766937827151,875.0,0.0003013,120]
[399954708,1766937827999,500.0,0.00030136,120]
[399954709,1766937828032,882.0,0.0003013,120]
[399954710,1766937828228,454.38750899,0.00030136,120]
[399954711,1766937828898,437.0,0.0003013,120]
[399954712,1766937829780,1853.0,0.0003013,120]
[399954713,1766937830616,1628.0,0.0003013,120]
[399954714,1766937831469,1818.0,0.0003013,120]
[399954715,1766937832583,1117.0,0.0003013,120]
[399954716,1766937833415,616.0,0.0003013,120]
[399954717,1766937838096,357.0,0.0003013,120]
[399954718,1766937838997,476.0,0.0003013,120]
[399954719,1766937839294,223.76072873,0.00030136,120]
[399954720,1766937839916,328.0,0.0003013,120]
[399954721,1766937841194,180.97451243,0.00030136,120]
[399954722,1766937843359,500.0,0.00030136,120]
[399954723,1766937843604,428.48362685,0.00030136,120]
[399954724,1766937851538,292.36218544,0.00030136,120]
[399954725,1766937853278,207.79101921,0.00030136,120]
[399954726,1766937855493,295.01860777,0.00030136,120]
[399954727,1766937856315,417.81836658,0.00030136,120]
[399954728,1766937857648,295.85474167,0.00030136,120]
[399954729,1766937858298,178.09235694,0.00030136,120]
[399954730,1766937858341,1898.0,0.00030136,120]
[399954731,1766937858528,1898.0,0.00030136,120]
[399954732,1766937858753,1898.0,0.00030136,120]
[399954733,1766937858978,1898.0,0.00030136,120]
[399954734,1766937859208,1898.0,0.00030136,120]
[399954735,1766937859430,1898.0,0.00030136,120]
[399954736,1766937859645,366.61181035,0.00030136,120]
[399954737,1766937859681,1898.0,0.00030136,120]
[399954738,1766937859889,1898.0,0.00030136,120]
[399954739,1766937860109,1898.0,0.00030136,120]
[399954740,1766937860369,1898.0,0.00030136,120]
[399954741,1766937860599,1898.0,0.00030136,120]
[399954742,1766937860824,1898.0,0.00030136,120]
[399954743,1766937861053,1898.0,0.00030136,120]
[399954744,1766937861305,1898.0,0.00030136,120]
[399954745,1766937861430,187.44299855,0.00030136,120]
[399954746,1766937861551,1898.0,0.00030136,120]
[399954747,1766937861811,1898.0,0.00030136,120]
[399954748,1766937862037,1898.0,0.00030136,120]
[399954749,1766937862071,311.27911172,0.00030136,120]
[399954750,1766937862296,1898.0,0.00030136,120]
[399954751,1766937862527,1898.0,0.00030136,120]
[399954752,1766937862747,1898.0,0.00030136,120]
[399954753,1766937863023,1898.0,0.00030136,120]
[399954754,1766937863226,1898.0,0.00030136,120]
[399954755,1766937863281,350.24728118,0.00030136,120]
[399954756,1766937863379,189.46900963,0.00030136,120]
[399954757,1766937863493,1898.0,0.00030136,120]
[399954758,1766937863724,1898.23099642,0.00030136,120]
[399954759,1766937864185,417.30096394,0.00030136,120]
[399954760,1766937864865,408.5750632,0.00030136,120]
[399954761,1766937865749,384.23212093,0.00030136,120]
[399954762,1766937866130,500.0,0.00030136,120]
[399954763,1766937866365,363.80524662,0.00030136,120]
[399954764,1766937867875,500.0,0.00030136,120]
[399954765,1766937868118,500.0,0.00030136,120]
[399954766,1766937868383,500.0,0.00030136,120]
[399954767,1766937868530,500.0,0.00030136,120]
[399954768,1766937868606,500.0,0.00030136,120]
[399954769,1766937868770,398.84034095,0.00030136,120]
[399954770,1766937868845,500.0,0.00030136,120]
[399954771,1766937869069,264.47050028,0.00030136,120]
[399954772,1766937870059,211.84373,0.00030136,120]
[399954773,1766937874894,500.0,0.00030136,120]
[399954774,1766937875133,636.3650348,0.00030136,120]
[399954775,1766937878868,181.85687473,0.00030136,120]
[399954776,1766937882886,660.0,0.0003013,120]
[399954777,1766937883483,155.62062559,0.00030136,120]
[399954778,1766937883667,633.0,0.0003013,120]
[399954779,1766937884463,385.0,0.0003013,120]
[399954780,1766937885271,1520.0,0.0003013,120]
[399954781,1766937885914,513.37866061,0.00030136,120]
[399954782,1766937886060,596.0,0.0003013,120]
[399954783,1766937886228,155.76892005,0.00030136,120]
[399954784,1766937886422,448.52736638,0.00030136,120]
[399954785,1766937887657,425.0163649,0.00030136,120]
[399954786,1766937888389,265.93540389,0.0003013,120]
[399954787,1766937889066,204.0,0.0003013,120]
[399954788,1766937889357,231.86753081,0.00030136,120]
[399954789,1766937891338,503.02449063,0.00030136,120]
[399954790,1766937891831,198.87521736,0.00030136,120]
[399954791,1766937893772,500.0,0.00030136,120]
[399954792,1766937894014,170.63315657,0.00030136,120]
[399954793,1766937895575,402.98203963,0.00030136,120]
[399954794,1766937896034,397.18727075,0.00030136,120]
[399954795,1766937896740,190.86866065,0.00030136,120]
[399954796,1766937899132,324.69202163,0.00030136,120]
[399954797,1766937901110,402.31259677,0.00030136,120]
[399954798,1766937902988,406.94615046,0.00030136,120]
[399954799,1766937903309,308.98735613,0.00030137,120]
[399954800,1766937903422,500.0,0.00030136,120]
[399954801,1766937903548,556.19010048,0.00030136,120]
[399954802,1766937905178,400.0,0.00030136,120]
[399954803,1766937906561,254.88682412,0.00030136,120]
[399954804,1766937907006,500.0,0.00030136,120]
[399954805,1766937907240,503.33007785,0.00030136,120]
[399954806,1766937911483,475.52861536,0.00030136,120]
[399954807,1766937911865,500.0,0.00030136,120]
[399954808,1766937912100,213.56087598,0.00030136,120]
[399954809,1766937912993,500.0,0.00030136,120]
[399954810,1766937913242,159.51601707,0.00030136,120]
[399954811,1766937913637,459.24164895,0.00030136,120]
[399954812,1766937922516,-158.29,0.00013467,2]
[399954813,1766937922538,-43.25604003,0.00013489,2]
[399954814,1766937926993,500.0,0.00030136,120]
[399954815,1766937927265,393.41193628,0.00030136,120]
[399954816,1766937927455,158.13800165,0.00030136,120]
[399954817,1766937927974,400.0,0.00030136,120]
[399954818,1766937928613,189.74556134,0.00030136,120]
[399954819,1766937929060,491.41917401,0.00030136,120]
[399954820,1766937929731,338.19041475,0.00030136,120]
[399954821,1766937930358,223.86835906,0.00030136,120]
[399954822,1766937930745,255.67561444,0.00030136,120]
[399954823,1766937932543,178.65738891,0.00030136,120]
[399954824,1766937932611,500.0,0.00030136,120]
[399954825,1766937932766,350.76414297,0.00030136,120]
[399954826,1766937932829,500.0,0.00030136,120]
[399954827,1766937933034,500.0,0.00030136,120]
[399954828,1766937933277,260.74529034,0.00030136,120]
[399954829,1766937933383,164.70783217,0.00030136,120]
[399954830,1766937934468,299.43546742,0.00030136,120]
[399954831,1766937936241,426.86833834,0.00030136,120]
[399954832,1766937936412,403.60101392,0.00030136,120]
[399954833,1766937938263,608.02411903,0.00030136,120]
[399954834,1766937939087,216.07729602,0.00030136,120]
[399954835,1766937943103,1770.0,0.0003013,120]
[399954836,1766937943511,246.98624194,0.00030136,120]
[399954837,1766937943909,1636.0,0.0003013,120]
[399954838,1766937944315,560.02959712,0.00030136,120]
[399954839,1766937944697,1645.91745958,0.0003013,120]
[399954840,1766937947610,203.37318774,0.00030136,120]
[399954841,1766937948162,178.54601372,0.00030136,120]
[399954842,1766937950796,436.97,0.00030136,120]
[399954843,1766937950861,178.15797028,0.00030136,120]
[399954844,1766937954560,398.75050348,0.00030136,120]
[399954845,1766937954884,500.0,0.00030136,120]
[399954846,1766937955103,385.54883637,0.00030136,120]
[399954847,1766937955674,168.73684322,0.00030136,120]
[399954848,1766937956336,191.67634317,0.00030136,120]
[399954849,1766937959437,500.0,0.00030136,120]
[399954850,1766937959791,500.0,0.00030136,120]
[399954851,1766937960075,500.0,0.00030136,120]
[399954852,1766937960331,500.0,0.00030136,120]
[399954853,1766937960570,500.0,0.00030136,120]
[399954854,1766937960812,500.0,0.00030136,120]
[399954855,1766937961195,500.0,0.00030136,120]
[399954856,1766937961267,500.0,0.00030136,120]
[399954857,1766937961346,500.0,0.00030136,120]
[399954858,1766937961533,500.0,0.00030136,120]
[399954859,1766937961599,500.0,0.00030136,120]
[399954860,1766937961787,500.0,0.00030136,120]
[399954861,1766937961852,500.0,0.00030136,120]
[399954862,1766937962050,500.0,0.00030136,120]
[399954863,1766937962120,352.93755205,0.00030136,120]
[399954864,1766937962303,500.0,0.00030136,120]
[399954865,1766937962571,450.95027262,0.00030136,120]
[399954866,1766937968168,178.89258352,0.00030136,120]
[399954867,1766937969864,416.45128041,0.00030136,120]
[399954868,1766937973529,500.0,0.00030136,120]
[399954869,1766937973789,500.0,0.00030136,120]
[399954870,1766937974034,500.0,0.00030136,120]
[399954871,1766937974271,500.0,0.00030136,120]
[399954872,1766937974504,500.0,0.00030136,120]
[399954873,1766937974725,500.0,0.00030136,120]
[399954874,1766937974953,500.0,0.00030136,120]
[399954875,1766937975189,472.28748792,0.00030136,120]
[399954876,1766937977704,402.98381529,0.00030136,120]
[399954877,1766937978334,217.51385196,0.00030136,120]
[399954878,1766937979831,408.47619843,0.00030136,120]
[399954879,1766937983576,265.72128077,0.00030136,120]
[399954880,1766937983885,256.98606338,0.00030136,120]
[399954881,1766937985604,408.07642773,0.00030136,120]
[399954882,1766937987073,500.0,0.00030136,120]
[399954883,1766937987298,408.6494441,0.00030136,120]
[399954884,1766937988561,452.7965204,0.00030136,120]
[399954885,1766937990293,406.13346072,0.00030136,120]
[399954886,1766937990628,500.0,0.00030136,120]
[399954887,1766937990861,269.20514305,0.00030136,120]
[399954888,1766938012885,439.71091727,0.00030136,120]
[399954889,1766938021963,428.70887664,0.00030136,120]
[399954890,1766938023374,413.4412223,0.00030136,120]
[399954891,1766938044339,425.49525816,0.00030136,120]
[399954892,1766938046220,480.31620084,0.00030136,120]
[399954893,1766938053493,1009.10919697,0.00030127,120]
[399954894,1766938056423,455.16413872,0.00030136,120]
[399954895,1766938059562,416.84713527,0.00030136,120]
[399954896,1766938061581,547.97434733,0.00030136,120]
[399954897,1766938061715,500.0,0.00030136,120]
[399954898,1766938061945,211.87818919,0.00030136,120]
[399954899,1766938063490,638.16482464,0.00030136,120]
[399954900,1766938070000,403.5377265,0.00030136,120]
[399954901,1766938070467,434.85873522,0.00030136,120]
[399954902,1766938070794,415.29239669,0.00030136,120]
[399954903,1766938076808,295.95730883,0.00030136,120]
[399954904,1766938081294,348.10226786,0.00030136,120]
[399954905,1766938083360,638.76582952,0.00030136,120]
[399954906,1766938086964,500.0,0.00030136,120]
[399954907,1766938087074,500.0,0.00030136,120]
[399954908,1766938087308,500.0,0.00030136,120]
[399954909,1766938087623,500.0,0.00030136,120]
[399954910,1766938087908,500.0,0.00030136,120]
[399954911,1766938088184,639.16546703,0.00030136,120]
[399954912,1766938102665,458.12573719,0.00030136,120]
[399954913,1766938103103,409.71600111,0.00030136,120]
[399954914,1766938106332,461.12655603,0.00030136,120]
[399954915,1766938125394,272.87798356,0.00030136,120]
[399954916,1766938132074,317.38928704,0.00030136,120]
[399954917,1766938134102,418.24147369,0.00030136,120]
[399954918,1766938135065,191.75461517,0.00030136,120]
[399954919,1766938139240,423.77711375,0.00030136,120]
[399954920,1766938141097,603.5100547,0.00030136,120]
[399954921,1766938156032,500.0,0.00030136,120]
[399954922,1766938156262,500.0,0.00030136,120]
[399954923,1766938156498,512.17649256,0.00030136,120]
[399954924,1766938158981,330.84332013,0.00030136,120]
[399954925,1766938162320,159.37545751,0.00030136,120]
[399954926,1766938169167,340.0,0.0003,120]
[399954928,1766938178092,429.21036412,0.00030136,120]
[399954929,1766938184953,201.03846204,0.00030136,120]
[399954930,1766938185976,410.61523847,0.00030136,120]
[399954931,1766938188090,412.24108179,0.00030136,120]
[399954932,1766938190516,415.95423232,0.00030136,120]
[399954933,1766938195407,500.0,0.00030136,120]
[399954934,1766938195633,500.0,0.00030136,120]
[399954935,1766938195852,442.7347619,0.00030136,120]
[399954936,1766938195936,500.0,0.00030136,120]
[399954937,1766938196452,500.0,0.00030136,120]
[399954938,1766938196525,276.68722698,0.00030136,120]
[399954939,1766938197846,500.0,0.0001316,2]
[399954940,1766938214863,425.95253781,0.00030136,120]
[399954941,1766938216683,413.13240698,0.00030136,120]
[399954942,1766938221116,201.77587847,0.00030136,120]
[399954943,1766938223381,167.58511094,0.00030136,120]
[399954944,1766938228446,507.21587468,0.00030136,120]
[399954948,1766938231725,-206.74395997,0.00013489,2]
[399954949,1766938231735,-300.0,0.000135,2]
[399954950,1766938231745,-109.65422847,0.00013511,2]
[399954951,1766938231757,-57.00577153,0.00013511,2]
[399954952,1766938231768,-300.0,0.00013618,2]
[399954953,1766938231779,-183.67368069,0.00013654,2]
[399954954,1766938231789,-183.67368069,0.00013684,2]
[399954955,1766938231800,-200.0,0.00013699,2]
[399954956,1766938231811,-167.61232456,0.00013736,2]
[399954957,1766938231823,-1000.0,0.00013754,2]
[399954958,1766938231839,-161.17,0.00013761,2]
[399954959,1766938231857,-1200.0,0.00013772,2]
[399954960,1766938231868,-1200.0,0.00013773,2]
[399954961,1766938231877,-300.0,0.00013773,2]
[399954962,1766938231888,-300.0,0.00013773,2]
[399954963,1766938231899,-300.0,0.00013773,2]
[399954964,1766938231908,-8493.55774972,0.00013774,2]
[399954965,1766938231918,-150.0,0.00013782,2]
[399954966,1766938231929,-166.66,0.00013783,2]
[399954968,1766938231938,-2293.62,0.00013783,2]
[399954969,1766938231947,-4999.99,0.00013783,2]
[399954970,1766938231957,-999.99,0.00013783,2]
[399954971,1766938231966,-150.99,0.00013783,2]
[399954972,1766938231975,-1195.59,0.00013783,2]
[399954973,1766938231985,-1195.8,0.00013783,2]
[399954974,1766938231995,-29238.18,0.00013783,2]
[399954975,1766938232004,-150.99,0.00013783,2]
[399954976,1766938232013,-1467.3413606,0.00013783,2]
[399954977,1766938232025,-5608.35543402,0.00013783,2]
[399954978,1766938232035,-414.15250116,0.00013783,2]
[399954980,1766938232302,413.57118374,0.00030136,120]
[399954991,1766938238301,-2510.14070422,0.00013783,2]
[399954992,1766938238310,-299.99,0.00013783,2]
[399954993,1766938238320,-9999.99,0.00013783,2]
[399954994,1766938238329,-499.99,0.00013783,2]
[399954995,1766938238341,-785.66,0.00013813,2]
[399954996,1766938238351,-2925.04356194,0.00013931,2]
[399954997,1766938238361,-500.0,0.00014053,2]
[399954998,1766938238372,-200.0,0.00014053,2]
[399954999,1766938238382,-151.0,0.00014053,2]
[399955000,1766938238392,-151.0,0.00014053,2]
[399955001,1766938238401,-151.0,0.00014053,2]
[399955002,1766938238411,-151.0,0.00014053,2]
[399955003,1766938238420,-151.0,0.00014053,2]
[399955004,1766938238430,-151.0,0.00014053,2]
[399955005,1766938238442,-151.0,0.00014053,2]
[399955006,1766938238451,-151.0,0.00014053,2]
[399955007,1766938238462,-151.0,0.00014053,2]
[399955008,1766938238472,-151.0,0.00014053,2]
[399955009,1766938238481,-151.0,0.00014053,2]
[399955010,1766938238491,-151.0,0.00014053,2]
[399955011,1766938238500,-151.0,0.00014053,2]
[399955012,1766938238510,-500.0,0.00014053,2]
[399955013,1766938238519,-151.0,0.00014053,2]
[399955014,1766938238529,-500.0,0.00014053,2]
[399955015,1766938238538,-151.0,0.00014053,2]
[399955016,1766938238547,-500.0,0.00014053,2]
[399955017,1766938238557,-151.0,0.00014053,2]
[399955018,1766938238566,-521.13737359,0.00014053,2]
[399955019,1766938238576,-151.0,0.00014053,2]
[399955020,1766938238585,-151.0,0.00014053,2]
[399955021,1766938238594,-151.0,0.00014053,2]
[399955022,1766938238603,-151.0,0.00014053,2]
[399955023,1766938238612,-151.0,0.00014053,2]
[399955024,1766938238621,-151.0,0.00014053,2]
[399955025,1766938238631,-151.0,0.00014053,2]
[399955026,1766938238640,-151.0,0.00014053,2]
[399955027,1766938238649,-151.0,0.00014053,2]
[399955028,1766938238659,-151.0,0.00014053,2]
[399955029,1766938238668,-151.0,0.00014053,2]
[399955030,1766938238678,-153.66184867,0.00014053,2]
[399955031,1766938238687,-200.0,0.00014053,2]
[399955032,1766938238697,-500.0,0.00014053,2]
[399955033,1766938238706,-200.0,0.00014053,2]
[399955034,1766938238715,-166.66,0.00014056,2]
[399955035,1766938238732,-276.73030402,0.00014061,2]
[399955036,1766938239959,-3355.13629713,0.00014061,2]
[399955037,1766938239972,-785.864716,0.00014061,2]
[399955038,1766938239985,-357.67640451,0.00014061,2]
[399955039,1766938239996,-458.91170172,0.00014061,2]
[399955040,1766938240008,-1579.56364063,0.00014061,2]
[399955041,1766938240162,-270.8181991,0.00014061,2]
[399955042,1766938240173,-59334.26873689,0.00014061,2]
[399955043,1766938240182,-500.0,0.00014327,2]
[399955044,1766938240192,-166.66,0.00014329,2]
[399955045,1766938240203,-20246.65901533,0.00014472,2]
[399955046,1766938240212,-232.29885037,0.00014473,2]
[399955047,1766938240222,-177.04701697,0.00014511,2]
[399955048,1766938240232,-329.1245,0.00014513,2]
[399955049,1766938240242,-1451.94,0.00014556,2]
[399955050,1766938240251,-500.0,0.00014564,2]
[399955051,1766938240260,-500.0,0.00014564,2]
[399955052,1766938240270,-500.0,0.00014564,2]
[399955053,1766938240280,-500.0,0.00014564,2]
[399955054,1766938240290,-500.0,0.00014564,2]
[399955055,1766938240300,-500.0,0.00014564,2]
[399955056,1766938240310,-500.0,0.00014564,2]
[399955057,1766938240320,-500.0,0.00014564,2]
[399955059,1766938240330,-500.0,0.00014564,2]
[399955061,1766938240339,-579.81774733,0.00014564,2]
[399955063,1766938240352,-500.0,0.00014564,2]
[399955065,1766938240362,-500.0,0.00014564,2]
[399955067,1766938240371,-500.0,0.00014564,2]
[399955069,1766938240381,-500.0,0.00014564,2]
[399955072,1766938240391,-483.08577501,0.00014564,2]
[399955074,1766938240400,-502.69145487,0.00014564,2]
[399955076,1766938240410,-500.0,0.00014564,2]
[399955078,1766938240419,-500.0,0.00014564,2]
[399955080,1766938240429,-500.0,0.00014564,2]
[399955082,1766938240439,-621.72362606,0.00014564,2]
[399955084,1766938240448,-509.65734169,0.00014564,2]
[399955086,1766938240457,-500.0,0.00014564,2]
[399955088,1766938240466,-500.0,0.00014564,2]
[399955090,1766938240475,-552.54951057,0.00014564,2]
[399955092,1766938240485,-500.0,0.00014564,2]
[399955094,1766938240495,-500.0,0.00014564,2]
[399955096,1766938240504,-500.0,0.00014564,2]
[399955098,1766938240514,-526.32491477,0.00014564,2]
[399955100,1766938240523,-500.0,0.00014564,2]
[399955102,1766938240532,-306.29015372,0.00014564,2]
[399955104,1766938240547,-500.0,0.00014564,2]
[399955106,1766938240557,-500.0,0.00014564,2]
[399955108,1766938240567,-500.0,0.00014564,2]
[399955110,1766938240577,-500.0,0.00014564,2]
[399955113,1766938240588,-500.0,0.00014564,2]
[399955115,1766938240597,-500.0,0.00014564,2]
[399955117,1766938240606,-500.0,0.00014564,2]
[399955119,1766938240616,-500.0,0.00014564,2]
[399955121,1766938240625,-562.55426662,0.00014564,2]
[399955123,1766938240634,-500.0,0.00014564,2]
[399955125,1766938240643,-649.44280484,0.00014564,2]
[399955127,1766938240655,-500.0,0.00014564,2]
[399955129,1766938240666,-500.0,0.00014564,2]
[399955131,1766938240675,-500.0,0.00014564,2]
[399955133,1766938240685,-500.0,0.00014564,2]
[399955135,1766938240694,-500.0,0.00014573,2]
[399955137,1766938240704,-538.18007522,0.00014573,2]
[399955139,1766938240713,-500.0,0.00014573,2]
[399955141,1766938240722,-157.13520198,0.00014573,2]
[399955143,1766938240740,-500.14010989,0.00014573,2]
[399955145,1766938240752,-500.0,0.00014573,2]
[399955147,1766938240762,-500.0,0.00014573,2]
[399955149,1766938240771,-500.0,0.00014573,2]
[399955151,1766938240780,-305.00383529,0.00014573,2]
[399955153,1766938240790,-500.0,0.00014573,2]
[399955155,1766938240800,-500.0,0.00014573,2]
[399955157,1766938240809,-500.0,0.00014573,2]
[399955159,1766938240819,-162.19608931,0.00014573,2]
[399955161,1766938240828,-163.02384966,0.00014573,2]
[399955163,1766938240838,-367.26456673,0.00014573,2]
[399955165,1766938240847,-500.0,0.00014573,2]
[399955167,1766938240857,-500.0,0.00014573,2]
[399955169,1766938240869,-500.0,0.00014573,2]
[399955171,1766938240879,-500.0,0.00014573,2]
[399955173,1766938240895,-484.98892147,0.00014573,2]
[399955175,1766938240905,-500.0,0.00014573,2]
[399955177,1766938240915,-500.0,0.00014573,2]
[399955179,1766938240924,-500.0,0.00014573,2]
[399955181,1766938240933,-500.0,0.00014573,2]
[399955184,1766938240943,-500.0,0.00014573,2]
[399955186,1766938240952,-500.5153804,0.00014573,2]
[399955188,1766938240963,-500.0,0.00014573,2]
[399955190,1766938240974,-437.57390351,0.00014573,2]
[399955192,1766938240985,-500.0,0.00014601,2]
[399955193,1766938240995,-200.0,0.00014601,2]
[399955195,1766938241005,-500.0,0.00014601,2]
[399955198,1766938241015,-218.54205258,0.0001463,2]
[399955200,1766938241024,-269.2571221,0.00014732,2]
[399955201,1766938241033,-161.17,0.00014743,2]
[399955204,1766938241042,-189.64,0.00014744,2]
[399955206,1766938241052,-500.0,0.00014776,2]
[399955208,1766938241061,-500.0,0.00014776,2]
[399955210,1766938241070,-500.0,0.00014776,2]
[399955212,1766938241080,-500.0,0.00014776,2]
[399955214,1766938241090,-275.37102073,0.00014807,2]
[399955216,1766938241099,-250.0,0.00014814,2]
[399955218,1766938241108,-232.29885033,0.0001482,2]
[399955220,1766938241117,-1451.94,0.0001483,2]
[399955222,1766938241127,-195.0,0.00014838,2]
[399955224,1766938241136,-250.0,0.00014838,2]
[399955226,1766938241146,-300.0,0.00014838,2]
[399955228,1766938241155,-300.0,0.00014838,2]
[399955230,1766938241164,-300.0,0.00014838,2]
[399955232,1766938241173,-300.0,0.00014838,2]
[399955233,1766938241183,-300.0,0.00014838,2]
[399955234,1766938241192,-195.0,0.00014838,2]
[399955235,1766938241202,-600.0,0.00014838,2]
[399955236,1766938241211,-600.0,0.00014838,2]
[399955237,1766938241221,-600.0,0.00014838,2]
[399955238,1766938241230,-253.99539142,0.00014838,2]
[399955239,1766938241240,-195.0,0.00014838,2]
[399955240,1766938241250,-193.54016903,0.00014838,2]
[399955241,1766938241259,-195.0,0.00014838,2]
[399955242,1766938241269,-163.03184917,0.00014838,2]
[399955243,1766938241278,-241.22133764,0.00014838,2]
[399955244,1766938241288,-300.0,0.00014838,2]
[399955245,1766938241298,-195.0,0.00014838,2]
[399955246,1766938241308,-500.0,0.00014875,2]
[399955247,1766938241317,-255.0,0.00014899,2]
[399955249,1766938241327,-500.0,0.00014973,2]
[399955250,1766938241336,-500.51324187,0.00014973,2]
[399955251,1766938241346,-500.0,0.00014973,2]
[399955252,1766938241356,-174.92808548,0.00014973,2]
[399955253,1766938241367,-500.0,0.00014973,2]
[399955254,1766938241379,-500.0,0.00014973,2]
[399955255,1766938241388,-536.24942027,0.00014973,2]
[399955256,1766938241398,-500.0,0.00014973,2]
[399955257,1766938241407,-500.0,0.00014973,2]
[399955258,1766938241417,-500.0,0.00014973,2]
[399955259,1766938241427,-154.86,0.00015068,2]
[399955260,1766938241438,-409.0,0.00015092,2]
[399955261,1766938241447,-420.0,0.00015092,2]
[399955262,1766938241456,-420.0,0.00015092,2]
[399955263,1766938241466,-420.0,0.00015092,2]
[399955264,1766938241476,-1451.94,0.00015104,2]
[399955265,1766938241486,-16854.16,0.00015111,2]
[399955266,1766938241495,-500.0,0.00015121,2]
[399955267,1766938241505,-1000.0,0.00015121,2]
[399955268,1766938241514,-1000.0,0.00015121,2]
[399955269,1766938241524,-325.46719088,0.00015121,2]
[399955270,1766938241533,-1132.31603684,0.00015121,2]
[399955271,1766938241543,-1000.0,0.00015121,2]
[399955272,1766938241552,-1007.4808143,0.00015121,2]
[399955273,1766938241562,-1133.29597512,0.00015121,2]
[399955274,1766938241572,-645.49615289,0.00015121,2]
[399955275,1766938241581,-1000.0,0.00015121,2]
[399955276,1766938241591,-1000.0,0.00015121,2]
[399955277,1766938241600,-1000.0,0.00015121,2]
[399955278,1766938241610,-1000.0,0.00015121,2]